[Event "DFMM-LV 2023"]
[Site "Braunfels"]
[Date "2023.06.11"]
[Round "5.21"]
[White "Buchholz, Maja Patricia"]
[Black "Ankerst, Milka"]
[Result "0-1"]
[Annotator "TA"]
[ECO "D34"]
[WhiteElo "1899"]
[BlackElo "1923"]
[PlyCount "106"]
[EventDate "2023.06.09"]
[EventType "team-tourn"]
[EventCountry "GER"]
[SourceTitle "playchess.com"]
[Source "ChessBase"]
[SourceQuality "1"]
[TimeControl "40/5400+30:1800+30"]

{[%evp 15,106,34,38,27,73,-7,0,-20,-18,-43,-8,-52,10,-52,0,0,13,-24,0,-14,45,0,27,-31,-2,-25,-29,-155,-42,-70,-63,-78,-72,-368,-77,-60,-81,-75,-52,-338,-89,-364,-93,-721,-708,-708,-681,-1275,-575,-567,-538,-533,-399,-394,-368,-578,-339,-665,-647,-758,-731,-1185,-1142,-29980,-29981,-29988,-29973,-29978,-2492,-29979,-29980,-29981,-12840,-12841,-12841,-29980,-29981,-29981,-29982,-29982,-29983,-29983,-29984,-29984,-29985,-29985,-29986,-29986,-29987,-29987,-29988,-29988,-29988]} 1. c4 {[%emt 0:00:03]} e6 {[%emt 0:00:26]} 2. g3 {[%emt 0:00:07]} d5 {[%emt 0:00:29]} 3. Bg2 {[%emt 0:00:06]} Nf6 {[%emt 0:00:16]} 4. Nf3 {[%emt 0:00:14]} c5 {[%emt 0:00:56]} 5. O-O {[%emt 0:00:58]} Nc6 {[%emt 0:00:19]} 6. cxd5 {[%emt 0:00:34]} exd5 {[%emt 0:01:24]} 7. d4 {[%emt 0:00:20]} Be6 {[%emt 0:01:05]} 8. Nc3 {[%emt 0:00:41]} Be7 {[%emt 0:01:02]} 9. Be3 {[%emt 0:01:35] D34: Tarrasch Defence: 6 g3 Nf6 7 Bg2 Be7.} O-O {[%emt 0:10:01]} (9... Ng4 $11 {is superior.}) 10. h3 {[%emt 0:03:45]} (10. dxc5 $16 Rc8 11. Na4) 10... Qd7 {[%emt 0:03:24]} 11. Kh2 {[%emt 0:04:36] The position is equal.} Rfd8 {[%emt 0:13:25]} 12. Rc1 {[%emt 0:09:29] [#]} c4 $146 {[%emt 0:06:53]} ({Predecessor:} 12... Rac8 13. Qa4 Nxd4 14. Nxd4 cxd4 15. Bxd4 Qxa4 16. Nxa4 Rc4 17. Bc5 Bxc5 18. Nxc5 b6 19. Nxe6 fxe6 20. Rxc4 dxc4 {0-1 Volpinari,D-Broome,T Olympiad-31 Moscow 1994 (14.3)}) 13. Bf4 {[%emt 0:11:09]} (13. Ne5 $5 Nxe5 14. dxe5 $11) 13... b6 {[%emt 0:13:16]} (13... Ne4 $15) 14. Rc2 {[%emt 0:18:50]} (14. Ne5 $11 Qb7 15. Bg5) 14... a6 {[%emt 0:05:51]} ({Better is} 14... Rac8 $15) 15. Ne5 $11 {[%emt 0:05:06]} Qb7 {[%emt 0:11:04]} 16. Rd2 {[%emt 0:05:22]} Rac8 {[%emt 0:01:21]} (16... b5 $5 {[%cal Rb5b4]}) 17. e4 {[%emt 0:04:37]} b5 {[%emt 0:03:35]} (17... dxe4 $11 18. Re1 Nb4) 18. Nxc6 {[%emt 0:02:52]} Qxc6 {[%emt 0:01:48]} 19. e5 {[%emt 0:00:18]} ({White should try} 19. Bg5 $1 $11) 19... Ne8 {[%emt 0:02:02]} 20. Be3 {[%emt 0:01:22]} b4 {[%emt 0:02:19]} 21. Nb1 {[%emt 0:01:15] [#]} (21. Ne2 $11) 21... f5 {[%emt 0:01:28]} ({Black should play} 21... Bf5 $1 $17 {Hoping for ...c3.} 22. g4 Bg6) 22. h4 {[%emt 0:07:53]} Nc7 {[%emt 0:01:00]} 23. Bh3 {[%emt 0:01:00]} Rf8 {[%emt 0:00:38][%cal Oe7h4]} 24. Bg5 $2 {[%emt 0:00:52][%mdl 8192]} (24. f4 $17) 24... Rf7 $2 {[%emt 0:01:51]} (24... Bxg5 $19 {has better winning chances.} 25. hxg5 f4) 25. Bxe7 $17 {[%emt 0:03:13]} Rxe7 {[%emt 0:00:23]} 26. f4 {[%emt 0:00:17]} Rf7 {[%emt 0:03:16]} (26... Qb6 $5 {[%cal Rc7b5]} 27. a3 a5 $15) 27. g4 $2 {[%emt 0:00:26][%mdl 8192] Black keeps a firm grip on the game.} (27. Qc2 $15) 27... a5 $2 {[%emt 0:00:42]} (27... fxg4 $19 {and Black stays clearly on top.} 28. Bxg4 Rcf8) 28. Rg2 $2 {[%emt 0:01:11][%mdl 8192]} (28. g5 $17 {was forced.}) 28... Rcf8 $2 {[%emt 0:05:42]} (28... fxg4 $19 29. Bxg4 Rcf8) 29. Rfg1 $2 {[%emt 0:00:38][%mdl 8192]} (29. g5 $17) 29... fxg4 $19 {[%emt 0:00:53][%mdl 64] [#] Discovered Attack} 30. Bxg4 {[%emt 0:00:16]} Rxf4 {[%emt 0:00:24]} 31. Bh3 {[%emt 0:02:36]} Rf2 {[%emt 0:00:33] White is weak on the light squares} (31... Rxh4 $142 {[%csl Ge6][%cal Rh4h3]} 32. Rxg7+ Kh8) 32. Qe1 {[%emt 0:04:44]} Rxg2+ {[%emt 0:00:53]} 33. Bxg2 {[%emt 0:00:11]} Bf5 {[%emt 0:02:49]} 34. Nd2 {[%emt 0:02:12]} Qh6 {[%emt 0:00:29] Inhibits Qe3.} 35. Nf3 {[%emt 0:01:00]} (35. Rf1 {might work better.}) 35... Qf4+ {[%emt 0:00:34]} 36. Kh1 $2 {[%emt 0:00:06]} (36. Qg3 Ne6 37. Ng5) 36... Ne6 {[%emt 0:00:52][%cal Bc7e6,Be6f4,Bf4g2][%mdl 32]} 37. Rf1 {[%emt 0:00:55]} Be4 {[%emt 0:01:06] Strongly threatening ...Qg4.} (37... Nxd4 38. Ng5 Qg4 39. Bxd5+ Kh8 40. e6 $11) 38. Kg1 {[%emt 0:00:54]} Qg4 {[%emt 0:00:35]} 39. Qe3 {[%emt 0:02:31]} Nf4 {[%emt 0:01:57][%csl Gf4][%cal Rg4g2]} 40. Qd2 {[%emt 0:01:27]} Nxg2 {[%emt 0:01:56]} 41. Qxg2 {[%emt 0:31:09]} Qxg2+ {[%emt 0:30:25]} 42. Kxg2 {[%emt 0:00:10]} Rxf3 {[%emt 0:00:28]} 43. Rxf3 {[%emt 0:00:04]} Bxf3+ {[%emt 0:00:19]} (43... c3 $142 44. Kg3 Bxf3 45. bxc3 bxc3 46. Kxf3 c2 47. h5 c1=Q 48. e6 Qc3+ 49. Ke2 Qc2+ 50. Kf3 Qxa2 51. Ke3 a4 52. e7 Qa3+ 53. Kd2 Qxe7 54. Kc3 Qe3+ 55. Kb4 a3 56. Kb5 a2 57. Kb6 a1=Q 58. Kc5 Qaxd4+ 59. Kc6 Qb6+ 60. Kxd5 Qee6#) 44. Kxf3 {[%emt 0:00:04][%mdl 4096] Endgame KP-KP} Kf7 {[%emt 0:00:08] ( -> ...Ke6)} 45. Ke3 {[%emt 0:00:37]} Ke6 {[%emt 0:00:08] Black mates.} 46. Kf3 {[%emt 0:01:07]} g6 {[%emt 0:00:34]} 47. Ke3 {[%emt 0:00:31]} h6 {[%emt 0:00:14][%cal Bh7h6,Bh6g5,Bg5g4,Bg4g3][%mdl 32]} ({Weaker is} 47... c3 48. bxc3 bxc3 49. Kd3 $11) 48. Kf4 {[%emt 0:00:06]} a4 {[%emt 0:00:12]} 49. Ke3 {[%emt 0:00:35]} g5 {[%emt 0:00:19]} 50. hxg5 {[%emt 0:00:21]} hxg5 {[%emt 0:00:02]} 51. Kd2 {[%emt 0:00:42]} g4 {[%emt 0:00:16]} 52. Ke3 {[%emt 0:01:00]} g3 {[%emt 0:01:00]} 53. Kf3 {[%emt 0:00:13]} c3 {[%emt 0:00:11] Weighted Error Value: White=1.01/Black=0.66} 0-1

[Event "DFMM-LV 2023"]
[Site "Braunfels"]
[Date "2023.06.11"]
[Round "5.22"]
[White "Spiel, Marianne"]
[Black "Froehlich-Dill, Astrid"]
[Result "0-1"]
[Annotator "NA RC COMBH"]
[ECO "A40"]
[WhiteElo "1840"]
[BlackElo "1762"]
[PlyCount "68"]
[EventDate "2023.06.09"]
[EventType "team-tourn"]
[EventCountry "GER"]
[SourceTitle "playchess.com"]
[Source "ChessBase"]
[SourceQuality "1"]
[TimeControl "40/5400+30:1800+30"]

1. e4 {[%emt 0:00:01]} e6 {[%emt 0:00:43]} 2. d4 {[%emt 0:00:07]} b6 {[%emt 0:00:26]} 3. c4 {[%emt 0:00:39]} Bb7 {[%emt 0:02:59]} 4. Bd3 {[%emt 0:00:32]} Nf6 {[%emt 0:01:11]} 5. Qe2 {[%emt 0:02:03]} Nc6 {[%emt 0:04:26]} 6. Nf3 {[%emt 0:01:46]} Nb4 {[%emt 0:00:29]} 7. Nc3 {[%emt 0:00:46]} Nxd3+ {[%emt 0:00:07]} 8. Qxd3 {[%emt 0:00:25]} Bb4 {[%emt 0:03:32]} 9. e5 {[%emt 0:06:08]} Ne4 {[%emt 0:06:04]} 10. O-O {[%emt 0:00:25]} Nxc3 {[%emt 0:06:10]} 11. bxc3 {[%emt 0:00:03]} Be7 {[%emt 0:00:10]} 12. a4 {[%emt 0:04:42]} a5 {[%emt 0:00:10]} 13. Ba3 {[%emt 0:01:38]} Ba6 {[%emt 0:09:48]} 14. Rfe1 {[%emt 0:03:10]} O-O {[%emt 0:04:08]} 15. Bxe7 {[%emt 0:01:56]} Qxe7 {[%emt 0:00:09]} 16. Nd2 {[%emt 0:00:40]} d5 {[%emt 0:11:28]} 17. exd6 {[%emt 0:03:25]} Qxd6 {[%emt 0:04:00]} 18. Qe4 {[%emt 0:14:59]} Rae8 {[%emt 0:04:28]} 19. Re3 {[%emt 0:10:14]} f5 {[%emt 0:03:02]} 20. Qe5 {[%emt 0:02:18]} Qxe5 {[%emt 0:06:32]} 21. Rxe5 {[%emt 0:00:18]} Bc8 {[%emt 0:05:58]} 22. c5 {[%emt 0:09:03]} Bd7 {[%emt 0:01:28]} 23. cxb6 {[%emt 0:17:37]} cxb6 {[%emt 0:00:07]} 24. Nc4 {[%emt 0:00:08]} Rb8 {[%emt 0:02:15]} 25. Nd6 {[%emt 0:01:48]} Rfd8 {[%emt 0:13:39]} 26. Nb5 {[%emt 0:05:01]} Rbc8 {[%emt 0:01:27]} 27. Kf1 {[%emt 0:01:35]} Bxb5+ {[%emt 0:01:55]} 28. Rxb5 {[%emt 0:00:22]} Rxc3 {[%emt 0:00:58]} 29. Rxb6 {[%emt 0:00:24]} Rxd4 {[%emt 0:03:05]} 30. Rxe6 {[%emt 0:00:33]} Rc5 {[%emt 0:01:51]} 31. Ra2 {[%emt 0:02:21]} Kf7 {[%emt 0:01:03]} 32. Rb6 {[%emt 0:00:14]} Rc1+ {[%emt 0:00:48]} 33. Ke2 {[%emt 0:00:16]} Re4+ {[%emt 0:00:41]} 34. Kf3 {[%emt 0:01:09]} Rc3# {[%emt 0:00:11]} 0-1

[Event "DFMM-LV 2023"]
[Site "Braunfels"]
[Date "2023.06.11"]
[Round "5.23"]
[White "von Beckh, Frieda"]
[Black "Braeuer, Vanessa"]
[Result "1/2-1/2"]
[Annotator "NA RC COMBH"]
[ECO "B23"]
[WhiteElo "1672"]
[BlackElo "1819"]
[PlyCount "140"]
[EventDate "2023.06.09"]
[EventType "team-tourn"]
[EventCountry "GER"]
[SourceTitle "playchess.com"]
[Source "ChessBase"]
[SourceQuality "1"]
[TimeControl "40/5400+30:1800+30"]

1. e4 {[%emt 0:00:03]} c5 {[%emt 0:00:01]} 2. Nc3 {[%emt 0:00:08]} Nc6 {[%emt 0:00:28]} 3. f4 {[%emt 0:00:06]} e6 {[%emt 0:00:48]} 4. Nf3 {[%emt 0:00:05]} d5 {[%emt 0:00:15]} 5. Bb5 {[%emt 0:00:44]} d4 {[%emt 0:02:08]} 6. Bxc6+ {[%emt 0:01:05]} bxc6 {[%emt 0:00:01]} 7. Ne2 {[%emt 0:00:21]} Nf6 {[%emt 0:01:58]} 8. d3 {[%emt 0:00:27]} Ba6 {[%emt 0:08:37]} 9. O-O {[%emt 0:01:27]} Be7 {[%emt 0:00:51]} 10. Ne5 {[%emt 0:04:22]} Qb6 {[%emt 0:00:27]} 11. Kh1 {[%emt 0:01:54]} O-O {[%emt 0:01:42]} 12. b3 {[%emt 0:04:26]} Rad8 {[%emt 0:00:42]} 13. Qe1 {[%emt 0:04:54]} Qc7 {[%emt 0:02:12]} 14. Bd2 {[%emt 0:02:21]} Nd7 {[%emt 0:00:43]} 15. Ba5 {[%emt 0:02:04]} Nb6 {[%emt 0:00:10]} 16. Rd1 {[%emt 0:02:25]} f6 {[%emt 0:02:01]} 17. Nc4 {[%emt 0:00:26]} Rd7 {[%emt 0:02:41]} 18. Qg3 {[%emt 0:02:17]} f5 {[%emt 0:01:47]} 19. Ne5 {[%emt 0:01:49]} Rdd8 {[%emt 0:00:29]} 20. Qf3 {[%emt 0:00:51]} Qc8 {[%emt 0:00:46]} 21. exf5 {[%emt 0:01:09]} Rd5 {[%emt 0:02:19]} 22. c4 {[%emt 0:01:31]} Rxe5 {[%emt 0:03:27]} 23. fxe5 {[%emt 0:00:44]} Rxf5 {[%emt 0:00:10]} 24. Qe4 {[%emt 0:00:44]} Rh5 {[%emt 0:03:00]} 25. Ng3 {[%emt 0:01:26]} Rh6 {[%emt 0:00:44]} 26. Qf3 {[%emt 0:02:03]} Qe8 {[%emt 0:00:12]} 27. Ne4 {[%emt 0:02:58]} Nd7 {[%emt 0:01:39]} 28. Bc7 {[%emt 0:00:44]} Rh5 {[%emt 0:01:57]} 29. Nd6 {[%emt 0:07:57]} Bxd6 {[%emt 0:02:22]} 30. Bxd6 {[%emt 0:00:10]} h6 {[%emt 0:04:38]} 31. Qxc6 {[%emt 0:08:28]} Kh7 {[%emt 0:02:29]} 32. Qe4+ {[%emt 0:09:48]} Kh8 {[%emt 0:02:03]} 33. Rf3 {[%emt 0:01:45]} Qc8 {[%emt 0:01:15]} 34. Qg6 {[%emt 0:02:17]} Rg5 {[%emt 0:00:53]} 35. Qxe6 {[%emt 0:00:53]} Bb7 {[%emt 0:02:37]} 36. Rf2 {[%emt 0:01:49]} Qc6 {[%emt 0:00:40]} 37. Qe8+ {[%emt 0:02:23]} Kh7 {[%emt 0:00:15]} 38. Rg1 {[%emt 0:00:32]} Nxe5 {[%emt 0:01:08]} 39. Qxc6 {[%emt 0:01:06]} Nxc6 {[%emt 0:04:47]} 40. Rf7 {[%emt 0:00:41]} Na5 {[%emt 0:01:44]} 41. Bc7 {[%emt 0:34:37]} Nc6 {[%emt 0:31:08]} 42. Bf4 {[%emt 0:00:22]} Rg4 {[%emt 0:00:28]} 43. Bxh6 {[%emt 0:03:01]} Bc8 {[%emt 0:04:00]} 44. Rc7 {[%emt 0:01:10]} Ne5 {[%emt 0:03:34]} 45. Rxc8 {[%emt 0:01:29]} Nxd3 {[%emt 0:03:31]} 46. Rf1 {[%emt 0:00:24]} Kxh6 {[%emt 0:00:34]} 47. Rc6+ {[%emt 0:00:53]} Kg5 {[%emt 0:01:11]} 48. Rf3 {[%emt 0:02:56]} Re4 {[%emt 0:02:41]} 49. Kg1 {[%emt 0:00:54]} Re1+ {[%emt 0:01:15]} 50. Rf1 {[%emt 0:00:07]} Re5 {[%emt 0:01:14]} 51. Rc7 {[%emt 0:00:42]} g6 {[%emt 0:00:54]} 52. Rxa7 {[%emt 0:01:13]} Nf4 {[%emt 0:01:37]} 53. a4 {[%emt 0:01:57]} Re2 {[%emt 0:08:09]} 54. Ra5 {[%emt 0:03:25]} Rxg2+ {[%emt 0:11:03]} 55. Kh1 {[%emt 0:00:07]} Re2 {[%emt 0:04:58]} 56. Rxc5+ {[%emt 0:00:44]} Kg4 {[%emt 0:00:07]} 57. Rd1 {[%emt 0:06:41]} d3 {[%emt 0:04:34]} 58. Kg1 {[%emt 0:02:14]} Kh3 {[%emt 0:00:55]} 59. Rg5 {[%emt 0:00:00]} d2 {[%emt 0:00:00]} 60. Rg3+ {[%emt 0:00:00]} Kh4 {[%emt 0:00:00]} 61. Rf3 {[%emt 0:00:00]} Nh3+ {[%emt 0:00:00]} 62. Kf1 {[%emt 0:00:00]} Rxh2 {[%emt 0:00:00]} 63. a5 {[%emt 0:00:00]} Kg4 {[%emt 0:00:00]} 64. Rxh3 {[%emt 0:00:00]} Kxh3 {[%emt 0:00:00]} 65. a6 {[%emt 0:00:00]} Kg3 {[%emt 0:00:00]} 66. a7 {[%emt 0:00:00]} Rf2+ {[%emt 0:00:00]} 67. Kg1 {[%emt 0:00:00]} Re2 {[%emt 0:00:00]} 68. Kf1 {[%emt 0:00:00]} Rf2+ {[%emt 0:00:00]} 69. Kg1 {[%emt 0:00:00]} Re2 {[%emt 0:00:00]} 70. Kf1 {[%emt 0:00:00]} Rf2+ {[%emt 0:00:00]} 1/2-1/2

[Event "DFMM-LV 2023"]
[Site "Braunfels"]
[Date "2023.06.11"]
[Round "5.24"]
[White "Albayrak, Aylin"]
[Black "Kaulfuss, Christa"]
[Result "1-0"]
[Annotator "NA RC COMBH"]
[ECO "A40"]
[WhiteElo "1690"]
[BlackElo "1714"]
[PlyCount "55"]
[EventDate "2023.06.09"]
[EventType "team-tourn"]
[EventCountry "GER"]
[SourceTitle "playchess.com"]
[Source "ChessBase"]
[SourceQuality "1"]
[TimeControl "40/5400+30:1800+30"]

1. d4 {[%emt 0:00:03]} Nc6 {[%emt 1:31:00]} 2. c4 {[%emt 1:31:27]} e5 {[%emt 0:00:00]} 3. d5 {[%emt 0:00:00]} Nce7 {[%emt 0:00:00]} 4. Bg5 {[%emt 0:00:00]} h6 {[%emt 0:00:00]} 5. Bd2 {[%emt 0:00:00]} Ng6 {[%emt 0:00:00]} 6. Nc3 {[%emt 0:00:00]} Nf6 {[%emt 0:00:00]} 7. Qc2 {[%emt 0:00:00]} Bb4 {[%emt 0:00:00]} 8. e3 {[%emt 0:00:00]} Qe7 {[%emt 0:00:00]} 9. Bd3 {[%emt 0:00:00]} Bxc3 {[%emt 0:00:00]} 10. Bxc3 {[%emt 0:00:00]} Nf8 {[%emt 0:00:00]} 11. e4 {[%emt 0:00:00]} d6 {[%emt 0:00:00]} 12. Ne2 {[%emt 0:00:00]} Ng6 {[%emt 0:00:00]} 13. h4 {[%emt 0:00:00]} h5 {[%emt 0:00:00]} 14. O-O-O {[%emt 0:00:00]} Ng4 {[%emt 0:00:00]} 15. Ng3 {[%emt 0:00:00]} Nxh4 {[%emt 0:00:00]} 16. Nf5 {[%emt 0:00:00]} Nxf5 {[%emt 0:00:00]} 17. exf5 {[%emt 0:00:00]} Bd7 {[%emt 0:00:00]} 18. Rde1 {[%emt 0:00:00]} O-O-O {[%emt 0:00:00]} 19. f4 {[%emt 0:00:00]} f6 {[%emt 0:00:00]} 20. Bb4 {[%emt 0:00:00]} Kb8 {[%emt 0:00:00]} 21. c5 {[%emt 0:00:00]} b6 {[%emt 0:00:00]} 22. c6 {[%emt 0:00:00]} Bc8 {[%emt 0:00:00]} 23. Qa4 {[%emt 0:00:00]} Nf2 {[%emt 0:00:00]} 24. Ba6 {[%emt 0:00:00]} Ka8 {[%emt 0:00:00]} 25. Re3 {[%emt 0:00:00]} Nxh1 {[%emt 0:00:00]} 26. Bxc8 {[%emt 0:00:00]} Rxc8 {[%emt 0:00:00]} 27. Qa6 {[%emt 0:00:00]} Rb8 {[%emt 0:00:00]} 28. Ra3 {[%emt 0:00:00]} 1-0

[Event "DFMM-LV 2023"]
[Site "Braunfels"]
[Date "2023.06.11"]
[Round "5.25"]
[White "Roessler, Ulrike"]
[Black "Hund, Sarah"]
[Result "1/2-1/2"]
[Annotator "TA"]
[ECO "B40"]
[WhiteElo "2176"]
[BlackElo "1977"]
[PlyCount "135"]
[EventDate "2023.06.09"]
[EventType "team-tourn"]
[EventCountry "GER"]
[SourceTitle "playchess.com"]
[Source "ChessBase"]
[SourceQuality "1"]
[TimeControl "40/5400+30:1800+30"]

{[%evp 10,135,-10,-4,-10,-8,-4,-18,-16,-1,0,-10,3,-6,0,-54,-58,-81,-108,-106,-105,-157,-144,-155,-53,-48,-61,-57,-68,-66,-56,-50,-22,-31,-8,-12,34,6,17,28,20,27,40,34,76,78,88,87,179,176,161,121,297,285,262,0,183,57,124,145,221,79,100,94,83,89,89,87,102,0,59,0,109,54,92,92,102,95,109,71,152,142,147,110,106,41,42,20,24,8,8,8,8,8,8,8,8,8,8,8,8,0,0,0,0,0,0,0,18,0,0,0,0,0,0,0,0,0,0,0,0,0,0,0,0,0,0,0]} 1. e4 {[%emt 0:00:01]} c5 {[%emt 0:00:07]} 2. b3 {[%emt 0:00:04]} e6 {[%emt 0:00:59]} 3. Bb2 {[%emt 0:01:21]} a6 {[%emt 0:00:28]} 4. Nf3 {[%emt 0:00:45]} Nc6 {[%emt 0:00:26]} 5. d4 {[%emt 0:03:18]} cxd4 {[%emt 0:03:35]} 6. Nxd4 {[%emt 0:00:04]} Qf6 {[%emt 0:00:26] B40: Sicilian: 2...e6, Unusual lines.} 7. Be2 {[%emt 0:04:45]} Bc5 {[%emt 0:01:43][%cal Rc6d4]} 8. c3 {[%emt 0:00:08]} Nge7 {[%emt 0:01:09][%cal Bg8e7,Be7g6,Bg6f4][%mdl 32]} 9. O-O {[%emt 0:00:33]} O-O {[%emt 0:00:58]} 10. Qd2 {[%emt 0:05:43]} e5 {[%emt 0:07:34]} 11. Nxc6 {[%emt 0:05:39]} dxc6 {[%emt 0:02:10] [#]} 12. b4 $146 {[%emt 0:01:29]} (12. Ba3 $11 Bxa3 13. Nxa3) ({Predecessor:} 12. Ba3 Bxa3 13. Nxa3 Be6 14. Qe3 Rad8 15. Rad1 Ng6 16. g3 Qe7 17. Nc2 Rxd1 18. Rxd1 {½-½ Labiano Hernandez,J (2210)-Quispe Arteaga,G (2392) ESP-ch U18 Salobrena 2021 (6)}) 12... Ba7 $15 {[%emt 0:04:32]} 13. c4 {[%emt 0:02:27]} Ng6 {[%emt 0:01:35]} 14. c5 {[%emt 0:03:09]} Nf4 {[%emt 0:04:56][%cal Oc8h3]} 15. Bf3 {[%emt 0:22:11] [#]} (15. g3 $142 Nh3+ {[%mdl 64] Deflection} 16. Kh1) 15... Bh3 $1 $17 {[%emt 0:14:03][%mdl 512]} 16. Qd6 {[%emt 0:06:03]} (16. Qc2 Qg5) 16... Qg5 {[%emt 0:06:13]} (16... Qxd6 $17 17. cxd6 Nd3) 17. Qxe5 $15 {[%emt 0:00:57]} f5 {[%emt 0:01:36]} 18. Qxg7+ $1 {[%emt 0:14:26]} Qxg7 {[%emt 0:00:12]} 19. Bxg7 {[%emt 0:00:02]} Kxg7 {[%emt 0:08:43]} 20. gxh3 {[%emt 0:00:07]} Nxh3+ {[%emt 0:00:19]} 21. Kg2 {[%emt 0:00:36]} Ng5 {[%emt 0:01:27]} 22. Nc3 {[%emt 0:08:19]} Rae8 {[%emt 0:04:15]} (22... a5 $11) 23. Rae1 {[%emt 0:03:04]} Nxf3 {[%emt 0:02:21]} 24. Kxf3 {[%emt 0:00:05]} fxe4+ {[%emt 0:00:21]} 25. Kg2 {[%emt 0:01:07]} Rf4 {[%emt 0:02:02][%cal Oe4e3]} 26. Re3 {[%emt 0:00:30]} Kf6 {[%emt 0:03:09][%cal Oa6a5]} 27. Rd1 {[%emt 0:17:07]} Re7 {[%emt 0:28:41][%cal Oa6a5]} 28. Rd8 {[%emt 0:00:30]} (28. Rd4 {simplifies} Ke5 29. Rexe4+ Rxe4 30. Rxe4+ Kf6 31. f4) 28... a5 {[%emt 0:00:00]} 29. a3 $18 {[%emt 0:00:30]} (29. bxa5 Bxc5 30. Rf8+ Ke5 31. Rxf4 Kxf4 $15) 29... Ke5 {[%emt 0:01:00]} 30. Ne2 {[%emt 0:00:30]} (30. bxa5 Bxc5 31. Re2 Bxa3 $17) 30... Rf6 {[%emt 0:00:30]} (30... Rf3 $16) 31. Ng3 {[%emt 0:00:30][%csl Gg3][%cal Re3e4]} (31. bxa5 $2 Bxc5 32. f4+ Rxf4 33. Nxf4 Bxe3 $19) 31... Rf4 {[%emt 0:00:30]} 32. Ne2 {[%emt 0:00:30]} (32. bxa5 Bxc5 33. Re2 Bxa3 $15) 32... Rf6 {[%emt 0:00:30]} 33. Rd4 {[%emt 0:00:30]} (33. bxa5 $2 Bxc5 34. f4+ Rxf4 35. Nxf4 Bxe3 $19) (33. Rh3 $18) 33... Rg6+ {[%emt 0:00:30]} (33... Rf4 $1 $14) 34. Kf1 $16 {[%emt 0:00:30]} Rg4 {[%emt 0:00:30] [#]} (34... Kf6 $16 35. Rd8 (35. Rexe4 Rxe4 36. Rxe4 axb4 $16) 35... b6) 35. f3 {[%emt 0:00:30]} (35. bxa5 $2 Bxc5 36. Rd8 Bxe3 37. fxe3 Rh4 $19) (35. Rd8 $1 $18) 35... Rf4 {[%emt 0:00:30][%mdl 64] Deflection} 36. Rdxe4+ {[%emt 0:00:30]} Rxe4 {[%emt 0:00:30]} 37. Rxe4+ {[%emt 0:00:00][%mdl 4096] Endgame KRB-KRN} Kf6 {[%emt 0:00:30]} 38. Rf4+ {[%emt 0:00:00]} (38. bxa5 Rxe4 39. fxe4 Bxc5 $17) 38... Ke5 {[%emt 0:00:30]} 39. Re4+ {[%emt 0:00:00]} (39. bxa5 Bxc5 40. a4 Ba3 $11) 39... Kf6 {[%emt 0:00:00]} 40. Rf4+ {[%emt 0:00:00]} (40. bxa5 Rxe4 41. fxe4 Bxc5 $17) (40. Rxe7 $14 Kxe7 41. Kf2 (41. bxa5 Bxc5 42. a4 Bb4 $11)) 40... Ke5 $1 {[%emt 0:01:00]} 41. Rh4 {[%emt 0:32:30]} ({Reject} 41. bxa5 $6 Bxc5 42. a4 Ba3 $11) ({White should try} 41. Rd4 $16) 41... axb4 {[%emt 0:24:39]} 42. axb4 {[%emt 0:00:30]} Bb8 {[%emt 0:06:21]} 43. Kf2 {[%emt 0:00:30] White is more active.} Bc7 {[%emt 0:00:30]} 44. Ng3 {[%emt 0:00:00]} b6 ({Black should play} 44... Kd5) 45. Rh5+ {[%emt 0:01:00]} Ke6 {[%emt 0:01:00]} 46. Ne4 {[%emt 0:00:30]} bxc5 {[%emt 0:00:00]} 47. bxc5 {[%emt 0:00:00]} (47. Nxc5+ $16 Kf6 48. Rh6+ Ke5 49. Rxc6) 47... Be5 $14 {[%emt 0:00:00]} 48. Ke3 {Hoping for f4.} Ra7 {[%emt 0:01:30]} 49. h4 {[%emt 0:00:00]} Ra3+ {[%emt 0:00:00] The position is equal.} 50. Ke2 {[%emt 0:00:00]} Ra2+ {[%emt 0:00:00]} 51. Kd3 {[%emt 0:00:00] With the idea Ng5+.} Ra3+ {[%emt 0:00:00]} 52. Kc4 {[%emt 0:00:00] Strongly threatening Ng5+.} Ra4+ {[%emt 0:00:00]} 53. Kb3 {[%emt 0:00:00]} Ra7 {[%emt 0:00:00]} 54. Kb4 {[%emt 0:00:00]} Bf4 $1 {[%emt 0:00:00]} 55. Ng5+ {[%emt 0:00:00]} Bxg5 $1 {[%emt 0:00:00]} 56. Rxg5 $11 {[%emt 0:00:00] KR-KR} Rb7+ {[%emt 0:00:00]} ({Resist} 56... Rf7 57. Rh5 $16) 57. Kc4 {[%emt 0:00:00]} Rf7 {[%emt 0:00:00]} 58. Rh5 {[%emt 0:00:00] And now Rh6+ would win.} Rf4+ {[%emt 0:00:00]} 59. Kc3 {[%emt 0:00:00]} Rxf3+ {[%emt 0:00:00]} 60. Kb4 {[%emt 0:00:00]} Rf7 {[%emt 0:00:00]} 61. Ka5 {[%emt 0:02:57] Kb6 is the strong threat.} Rb7 $1 {[%emt 0:00:00]} 62. Ka6 {[%emt 0:00:05]} Rb5 {[%emt 0:00:00]} 63. Rxh7 {[%emt 0:01:29]} Rxc5 {[%emt 0:00:00]} 64. Kb6 {[%emt 0:00:04]} Rc4 {[%emt 0:00:04]} 65. h5 {[%emt 0:00:19]} Kf6 {[%emt 0:00:24]} 66. Rh6+ {[%emt 0:00:45]} Kg5 {[%emt 0:00:07]} 67. Rxc6 {[%emt 0:00:03]} Rxc6+ {[%emt 0:00:04]} 68. Kxc6 {[%emt 0:00:30] Both players deserved the win here.   Weighted Error Value: White=0.30/Black=0.20 (precise)} 1/2-1/2